{"text_format":"1","workbook":"xlsx","n_sheets":4,"sheets":["Zacznij tutaj","zarządzanie ryzykiem - przykład","zarządzanie ryzykiem - szablon","<#Config>"],"not_rendered":{"charts":0,"images":3,"macros":1,"external_links":0,"defined_names":2,"comments":0,"pivot_tables":0},"unopened":[],"bounds":{"document_bytes":16777216,"sheet_cells":100000,"rows_first":2000,"rows_last":500,"rows_between":2000,"halvings":0,"cell_chars":16384,"cell_head_chars":4096},"cells_cut":0,"cells_raw":0,"read":"whole","date_system":"1900"}

{"sheet":"Zacznij tutaj","index":0,"n_rows":29,"n_cols":3,"rows_kept":29,"cut":false,"hidden":false,"merged":[[2,2,5,10],[7,2,13,10],[15,2,16,10],[28,2,28,10],[24,2,24,10],[18,2,21,10]]}
[]
[]
[null,null,{"$error":"#VALUE!"}]
[]
[]
[]
[null,null,"Zarządzanie ryzykiem - szablon"]
[null,null,"Od ponad 20 lat dostarczamy spersonalizowane rozwiązania IT dla firm. \n\nPlatforma AdaptiveGRC została stworzona przez zespół pasjonatów pracujących na całym świecie, którzy łączą wiedzę biznesową i procesową z ekspertyzą techniczną w celu tworzenia nowoczesnych rozwiązań IT. Wspieramy największe globalne firmy z branży farmaceutycznej oraz sektora regulowanego, które znajdują się na liście Fortune500. "]
[]
[]
[]
[]
[]
[]
[]
[null,null,"AdaptiveGRC oferuje szereg modułów ułatwiających zarządzanie działaniami GRC w Twojej firmie spełniając najnowsze wymogi regulacyjne (DORA, NIS2). "]
[]
[]
[null,null,"Ten szablon to narzędzie, które pozwoli Ci skutecznie identyfikować, oceniać i monitorować ryzyka w Twojej organizacji. Rozpocznij efektywne zarządzanie ryzykiem już dziś!\n\nW drugim arkuszu znajdziesz wypełniony danymi wzór, który może posłużyć Ci jako przykład, inspiracja i wskazówka. Natomiast w trzecim arkuszu znajdziesz pusty szablon do wypełnienia Twoimi danymi."]
[]
[]
[]
[]
[null,null,"W razie pytań zapraszamy do kontaktu przez formularz:"]
[null,null,"AdaptiveGRC"]
[]
[]
[]
[null,null,"© Copyright 2024 AdaptiveGRC. All rights reserved"]

{"sheet":"zarządzanie ryzykiem - przykład","index":1,"n_rows":50,"n_cols":88,"rows_kept":50,"cut":false,"hidden":false,"merged":[[13,38,16,38],[5,40,5,56],[6,40,7,40],[8,1,9,1],[8,2,9,2],[8,3,9,3],[8,15,9,15],[8,29,9,29],[8,38,9,38],[1,1,5,3],[5,5,5,11],[5,13,6,15],[5,17,5,24],[5,26,6,29],[5,31,5,36],[5,38,6,38],[13,1,16,1],[13,2,16,2],[13,3,16,3],[13,15,16,15],[13,29,16,29],[26,38,28,38],[17,1,21,1],[17,2,21,2],[17,3,21,3],[17,15,21,15],[17,29,21,29],[17,38,21,38],[26,1,28,1],[26,2,28,2],[26,3,28,3],[26,15,28,15],[26,29,28,29],[35,38,38,38],[29,1,31,1],[29,2,31,2],[29,3,31,3],[29,15,31,15],[29,29,31,29],[29,38,31,38],[35,1,38,1],[35,2,38,2],[35,3,38,3],[35,15,38,15],[35,29,38,29],[43,38,47,38],[41,1,42,1],[41,2,42,2],[41,3,42,3],[41,15,42,15],[41,29,42,29],[41,38,42,38],[43,1,47,1],[43,2,47,2],[43,3,47,3],[43,15,47,15],[43,29,47,29]]}
[]
[null,{"$error":"#VALUE!"}]
[]
[]
[]
[null,null,null,null,null,"Podstawowe informacje",null,null,null,null,null,null,null,"Ryzyko wbudowane (brutto)",null,null,null,"Mechanizmy kontrolne",null,null,null,null,null,null,null,null,"Ryzyko szczątkowe",null,null,null,null,"Działania ",null,null,null,null,null,null,"Ryzyko docelowe",null,"Dodatkowe informacje (do wykorzystania w Zarządzaniu Ryzykiem)"]
[null,null,null,null,null,null,null,null,null,null,null,null,null,null,null,null,null,null,null,null,null,null,null,null,null,null,null,null,null,null,null,null,null,null,null,null,null,null,null,null,"Dostosowany wpływ (dla wartości ryzyka wbudowanego)"]
[null,"ID","Tytuł","Opis",null,"Typ ryzyka","Proces","Apetyt na ryzyko","Łatwość zarządzania","Pozycja","Właściciel ryzyka","Status ryzyka",null,"Prawdopodobieństwo","Wpływ","Poziom ryzyka",null,"ID","Opis","Typ","Właściciel","Status","Wynik","Data docelowa","Data zamknięcia",null,"Prawdopodobieństwo","Wpływ","Dostosowany wpływ","Poziom ryzyka",null,"ID","Opis","Właściciel","Status","Data docelowa","Data zamknięcia",null,"Poziom ryzyka",null,null,"Ocena ryzyka (dla wartości ryzyka wbudowanego)","Szacunkowy czas rozwiązania","Poziom zrozumienia","Bliskość ryzyka","Obszar POTI","Regulacje","Domena ryzyka","Jednostka organizacyjna","Geograficzne obszary wpływu","Powiązane aplikacje","Powiązane wdrożenia","Powiązani dostawcy","Powiązane kategorie","Utworzone przez","Utworzono","Ostanio modyfikowany"]
[null,"RIS49","Ryzyko związane z brakiem prawidłowo zaprojektowanym systemem operacji zarządczej","Opracowując  system  informacji  zarządczej  w  zakresie  technologii  informacyjnej  oraz bezpieczeństwa  środowiska  teleinformatycznego,  Przedsiębiorstwo powinno: \n–  zidentyfikować  zagadnienia  w  obszarach  technologii  informacyjnej  oraz bezpieczeństwa  środowiska  teleinformatycznego,  które  powinny  być  objęte systemem  informacji  zarządczej,  z  uwzględnieniem  związanego  z  nimi  ryzyka  i innych specyficznych uwarunkowań, \n–  określić  sposób  i  zasady  udostępniania  i  pozyskiwania  informacji  dotyczących ww.  zagadnień  (w  tym  również  wskazać  źródła,  z  których  możliwe  jest automatyczne pozyskiwanie tych informacji)  oraz wskazać odpowiedzialności w tym zakresie, \n–  określić adekwatny zakres i częstotliwość raportowania, \n–  określić osoby lub funkcje, które powinny być odbiorcami informacji, \n–  zapewnić,  aby  informacje  przekazywane  każdemu  z  odbiorców  były  czytelne, rzetelne,  dokładne,  aktualne,  miały  odpowiedni  zakres  oraz  były  dostarczane terminowo i z właściwą częstotliwością. \n",null,"Regulacyjne","Proces zakupów","Niskie ryzyko","Problemy z zarządzaniem",1,"Filip Nowak","Analiza ryzyka wbudowanego",null,"5 (Bardzo wysokie)","4 (Wysoki) 250 tys.-1 mln","20 (Czerwony)",null,"CTR14","Aktualizacje bezpieczeństwa firewalli i routerow brzegowych"," Zapobiegawczy",null,"Zaakceptowany","Poziom infrastruktury",null,null,null,null,null,null,null,null,null,null,null,null,null,null,null,null,null,"90 0 00 000USD","90 0 00 000USD","W ciągu miesiąca","Bardzo ograniczone","W ciągu kilku dni",null," KNF - Wytyczne IT",null,"Departament Bezpieczeństwa",null,null,null,null,null,"Łukasz Krzewicki","24-09-24","24-09-24",null,null,null,null,null,null,null,null,null,null,null,null,null,null,null,null,null,null,null,null,null,null,null,-2924705,211,95,95]
[null,null,null,null,null,null,null,null,null,null,null,null,null,null,null,null,null,"CTR17","Wprowadzenie polityki bezpieczeństwa w zakresie dostarczania usług"," Zapobiegawczy","Anna Jablonska","Zaakceptowany","Poziom serwisu",null,null,null,null,null,null,null,null,null,null,null,null,null,null,null,null,null,null,null,null,null,null,null,null,null,null,null,null,null,null,null,null,null,null,null,null,null,null,null,null,null,null,null,null,null,null,null,null,null,null,null,null,null,null,null,null,null,-2924705,211,95,95]
[null,"RIS34","Ryzyko kary finansowej RODO za niespełnienie wymogów dokumentacji incydentów","Brak spełeniania wymogów RODO związanych z dokumentacją incydentów.",null,"Finansowe","Proces zakupów",null,"Problemy z zarządzaniem",2,"Jacek Kaczmarek","Analiza ryzyka wbudowanego",null,"4 (Wysokie)","5 (Bardzo wysoki) >1 mln","20 (Czerwony)",null,null,null,null,null,null,null,null,null,null,null,null,null,null,null,null,null,null,null,null,null,null,null,null,"140 0 00 000USD","140 0 00 000USD","Od 1 do 3 miesięcy","Dość ograniczone","Od 3 do 6 miesięcy",null,null,null,"Departament Bezpieczeństwa",null,null,null,null,null,"Anna Jabłońska","06-08-24","06-08-24",null,null,null,null,null,null,null,null,null,null,null,null,null,null,null,null,null,null,null,null,null,null,null,-2924705,211,95,95]
[null,"RIS41","Ryzyko braku możliwości realizacji żądań organiczenia przetwarzania lub usunięcia danych","Ryzyko braku możliwości realizacji żądań organiczenia przetwarzania lub usunięcia danych",null,"Technologiczne","Zarządzanie tożsamością i dostępami","Chyba ze","Zarządzalne",3,"Jacek Kaczmarek","Analiza ryzyka wbudowanego",null,"4 (Wysokie)","4 (Wysoki) 250 tys.-1 mln","16 (Pomarańczowy)",null,"CTR20","Prowadzenie postępowań wyjaśniających przez osoby niezależne i nagłaśnianie tych postępowań."," Zapobiegawczy","Jacek Nowak","Zaakceptowany","Poziom serwisu",null,null,null,null,null,null,null,null,null,null,null,null,null,null,null,null,null,"70 0 00 000USD","7 0 00 000USD","W ciągu miesiąca","Eksperckie","Od 3 do 6 miesięcy",null,null,null,"Centrum IT",null," REMUS CRM System",null,null,null,"Adam Nowak","24-07-24","24-07-24",null,null,null,null,null,null,null,null,null,null,null,null,null,null,null,null,null,null,null,null,null,null,null,-26283,255,153,85]
[null,"RIS36","Ryzyko kary związanej z brakiem rejestru skarg","I. Zasady ogólne \nInstytucja finansowa powinna prowadzić wewnętrzny rejestr skarg w rzetelny sposób, przy uwzględnieniu obowiązujących przepisów prawa oraz zapewniając odpowiedni poziom bezpieczeństwa gromadzonych i przetwarzanych danych. \n",null,"Regulacyjne","Przeciwdziałanie konfliktom interesów",null,null,4,"Iga Lewandowska","Analiza ryzyka wbudowanego",null,"4 (Wysokie)","4 (Wysoki) 250 tys.-1 mln","16 (Pomarańczowy)",null,null,null,null,null,null,null,null,null,null,null,null,null,null,null,null,null,null,null,null,null,null,null,null,"70 0 00 000USD","70 0 00 000USD",null,null,null,null,null,null,"Departament Compliance",null,null,null,null,null,"Anna Jabłońska","12-07-22","12-07-22",null,null,null,null,null,null,null,null,null,null,null,null,null,null,null,null,null,null,null,null,null,null,null,-26283,255,153,85]
[null,"RIS33","Utrata dostepu do danych spowodowana oprogramowaniem Malware lub Ransomware","Utrata dostepu do danych spowodowana oprogramowania Malware lub Ransomware. \nAtak ransomware może skutkować zaszyfrowaniem wszystkich danych na zainfekowanym urządzeniu (tj. dokumentów i innych ważnych plików). Po zaszyfrowaniu możliwa jest utrata dostępu do plików, co może prowadzić do utraty informacji i poważnych konsekwencji.",null,"Operacyjne","Zarządzanie cyberbezpieczeństwem","Średnie ryzyko","Poważne problemy z zarządzaniem",5,"Iga Lewandowska","Analiza ryzyka szczątkowego",null,"3 (Średnie)","5 (Bardzo wysoki) >1 mln","15 (Pomarańczowy)",null,null,null,null,null,null,null,null,null,null,"4 (Wysokie)","3 (Średni) 50-250 tys.","17 5 00 000USD","12 (Pomarańczowy)",null,"STDACT00007","Przygotować procedurę dot. szyfrowania danych osobowych przekazywanych do podmiotów zewnętrznych","Łukasz Nowak","Otwarte","13-02-25",null,null,null,null,"100 0 00 000USD","200 0 00 000USD","Od 3 do 5 lat","Bardzo duże","Od 1 do 3 miesięcy",null,null,null,"Pion Operacyjny",null,null,null,null,null,"Anna Jabłońska","25-09-24","25-09-24",null,null,null,null,null,null,null,null,null,null,null,null,null,null,null,null,null,null,null,null,null,null,null,-26283,255,153,85,-26283,255,153,85]
[null,null,null,null,null,null,null,null,null,null,null,null,null,null,null,null,null,"CTR18","Stosowanie rozwiązania klasy DLP (Data Loss Prevention)"," Zapobiegawczy","Anna Jablonska","Zaakceptowany","Poziom aplikacji",null,null,null,null,null,null,null,null,null,null,null,null,null,null,null,null,null,null,null,null,null,null,null,null,null,null,null,null,null,null,null,null,null,null,null,null,null,null,null,null,null,null,null,null,null,null,null,null,null,null,null,null,null,null,null,null,null,-26283,255,153,85,-26283,255,153,85]
[null,null,null,null,null,null,null,null,null,null,null,null,null,null,null,null,null,"CTR14","Aktualizacje bezpieczeństwa firewalli i routerow brzegowych"," Zapobiegawczy",null,"Zaakceptowany","Poziom infrastruktury",null,null,null,null,null,null,null,null,null,null,null,null,null,null,null,null,null,null,null,null,null,null,null,null,null,null,null,null,null,null,null,null,null,null,null,null,null,null,null,null,null,null,null,null,null,null,null,null,null,null,null,null,null,null,null,null,null,-26283,255,153,85,-26283,255,153,85]
[null,null,null,null,null,null,null,null,null,null,null,null,null,null,null,null,null,"CTR6","Szyfrowanie danych"," Zapobiegawczy",null,"Zaakceptowany","Poziom aplikacji",null,null,null,null,null,null,null,null,null,null,null,null,null,null,null,null,null,null,null,null,null,null,null,null,null,null,null,null,null,null,null,null,null,null,null,null,null,null,null,null,null,null,null,null,null,null,null,null,null,null,null,null,null,null,null,null,null,-26283,255,153,85,-26283,255,153,85]
[null,"RIS40","Ryzyko braku możliwości realizacji żądań organiczenia przetwarzania lub usunięcia danych","Ryzyko braku możliwości realizacji żądań organiczenia przetwarzania lub usunięcia danych",null,"Regulacyjne","Zarządzanie tożsamością i dostępami","Średnie ryzyko",null,6,"Anna Jabłońska","Analiza ryzyka wbudowanego",null,"4 (Wysokie)","3 (Średni) 50-250 tys.","12 (Pomarańczowy)",null,null,null,null,null,null,null,null,null,null,null,null,null,null,null,"STDACT00007","Przygotować procedurę dot. szyfrowania danych osobowych przekazywanych do podmiotów zewnętrznych","Łukasz Nowak","Otwarte","13-02-25",null,null,null,null,"17 5 00 000USD","17 5 00 000USD",null,null,null,null,null,null,null,null,null,null,null,null,"Anna Jabłońska","06-08-24","06-08-24",null,null,null,null,null,null,null,null,null,null,null,null,null,null,null,null,null,null,null,null,null,null,null,-26283,255,153,85]
[null,null,null,null,null,null,null,null,null,null,null,null,null,null,null,null,null,null,null,null,null,null,null,null,null,null,null,null,null,null,null,"STDACT00005","Wprowadzić limity transakcyjne w systemie QWE","Łukasz Nowak","Przeterminowane","05-08-22",null,null,null,null,null,null,null,null,null,null,null,null,null,null,null,null,null,null,null,null,null,null,null,null,null,null,null,null,null,null,null,null,null,null,null,null,null,null,null,null,null,null,null,null,-26283,255,153,85]
[null,null,null,null,null,null,null,null,null,null,null,null,null,null,null,null,null,null,null,null,null,null,null,null,null,null,null,null,null,null,null,"STDACT00003","Wprowadzenie procedury anonimizacji danych w środowisku testowym","Łukasz Nowak","Przeterminowane","31-10-23",null,null,null,null,null,null,null,null,null,null,null,null,null,null,null,null,null,null,null,null,null,null,null,null,null,null,null,null,null,null,null,null,null,null,null,null,null,null,null,null,null,null,null,null,-26283,255,153,85]
[null,null,null,null,null,null,null,null,null,null,null,null,null,null,null,null,null,"CTR6","Szyfrowanie danych"," Zapobiegawczy",null,"Zaakceptowany","Poziom aplikacji",null,null,null,null,null,null,null,null,null,null,null,null,null,null,null,null,null,null,null,null,null,null,null,null,null,null,null,null,null,null,null,null,null,null,null,null,null,null,null,null,null,null,null,null,null,null,null,null,null,null,null,null,null,null,null,null,null,-26283,255,153,85]
[null,null,null,null,null,null,null,null,null,null,null,null,null,null,null,null,null,"CTR12","Wprowadzenie w systemach mechanizmów walidacji danych w powiązaniu z centralna bazą słowników."," Zapobiegawczy",null,"Zaakceptowany","Poziom aplikacji",null,null,null,null,null,null,null,null,null,null,null,null,null,null,null,null,null,null,null,null,null,null,null,null,null,null,null,null,null,null,null,null,null,null,null,null,null,null,null,null,null,null,null,null,null,null,null,null,null,null,null,null,null,null,null,null,null,-26283,255,153,85]
[null,"RIS45","Ryzyko związane z brakiem identyfikację przyczyn błędów występujących w danych","identyfikację przyczyn błędów występujących w danych",null,"Technologiczne","Zarządzanie incydentami ",null,null,7,"Filip Nowak","Identyfikacja ryzyka",null,"3 (Średnie)",null,"12 (Pomarańczowy)",null,null,null,null,null,null,null,null,null,null,null,null,null,null,null,null,null,null,null,null,null,null,null,null,null,null,null,null,null,null," KNF - Wytyczne IT",null,"Centrum IT",null,null,null,null,null,"Łukasz Krzewicki","21-06-24","21-06-24",null,null,null,null,null,null,null,null,null,null,null,null,null,null,null,null,null,null,null,null,null,null,null,-26283,255,153,85]
[null,"RIS37","Mailing do osób nieuprawnionych","Przekazanie mailingu do osób nieuprawnionych.",null,"Technologiczne","Działalność marketingowa","Średnie ryzyko",null,8,"Iga Lewandowska","Postępowanie z ryzykiem",null,"4 (Wysokie)","3 (Średni) 50-250 tys.","12 (Pomarańczowy)",null,null,null,null,null,null,null,null,null,null,null,null,null,null,null,null,null,null,null,null,null,null,null,null,"17 5 00 000USD","17 5 00 000USD",null,null,null,null,null,null,"Pion Sprzedaży i Marketingu",null,null,null,null,null,"Anna Jabłońska","04-06-24","04-06-24",null,null,null,null,null,null,null,null,null,null,null,null,null,null,null,null,null,null,null,null,null,null,null,-26283,255,153,85]
[null,"RIS43","Ryzyko braku zgodności z komunikatem chmurowym KNF - Brak zastowania zasady \"minimum koniecznego\" dla uprawnień serwisowych","Organizacja nie stosuje zasady zasadę „minimum koniecznego” dla uprawnień serwisowych nadawanych w sytuacji konieczności wykonania czynności wymaganych przez podmiot nadzorowany (w tym również usunięcia usterek) oraz na czas ich trwania. Ryzyko to stanowi brak zgodności z komunikatem chmurowym KNF.",null,"Brak zgodności","Zarządzanie rozwojem i utrzymaniem systemów","Niskie ryzyko",null,9,"Anna Jabłońska","Analiza ryzyka wbudowanego",null,"3 (Średnie)","4 (Wysoki) 250 tys.-1 mln","12 (Pomarańczowy)",null,null,null,null,null,null,null,null,null,null,null,null,null,null,null,null,null,null,null,null,null,null,null,null,"50 0 00 000USD","50 0 00 000USD",null,null,null,null,null,null,"Centrum IT",null,null,null,null,null,"Łukasz Krzewicki","20-05-24","20-05-24",null,null,null,null,null,null,null,null,null,null,null,null,null,null,null,null,null,null,null,null,null,null,null,-26283,255,153,85]
[null,"RIS47","Terminowość faktur","Regularne opóźnienia płatności.",null,"Finansowe","Zarządzanie incydentami ",null,null,10,"Adam Nowak","Analiza ryzyka wbudowanego",null,"3 (Średnie)","3 (Średni) 50-250 tys.","9 (Żółty)",null,null,null,null,null,null,null,null,null,null,null,null,null,null,null,null,null,null,null,null,null,null,null,null,"12 5 00 000USD","12 5 00 000USD",null,null,null,null," Rozporzadzenie o ochronie danych osobowych",null,"Departament Kontrolingu Finansowego",null,null,null," Bank XYZ",null,"Iza Górska","06-08-24","06-08-24",null,null,null,null,null,null,null,null,null,null,null,null,null,null,null,null,null,null,null,null,null,null,null,-8875,255,221,85]
[null,"RIS42","Ryzyko utraty ciągłości działań operacyjnych zwiazana z brakiem Planu Awaryjnego (Disaster Recovery)","Ryzyko utraty ciągłości działań operacyjnych zwiazana z brakiem Planu Awaryjnego (Disaster Recovery) na wypadek katastrofy lub bardzo poważnej awarii. \nW organizacji brak jest Disaster Recovery Plan (DRP) - spisanego dokumentu zawierającego zestaw procedur niezbędnych do przetrwania działania firmy w przypadku katastrofy lub bardzo poważnej awarii. ",null,"Ekonomiczne","Zarządzanie rozwojem i utrzymaniem systemów","Niskie ryzyko","Problemy z zarządzaniem",11,"Zuzanna Kowalska","Analiza ryzyka szczątkowego",null,"3 (Średnie)","5 (Bardzo wysoki) >1 mln","15 (Pomarańczowy)",null,null,null,null,null,null,null,null,null,null,"3 (Średnie)","3 (Średni) 50-250 tys.","12 5 00 000USD","9 (Żółty)",null,"STDACT00002","Uaktualnić plany ciągłości działania by uwzględnić wymogi dotyczące ochrony danych osobowych","Łukasz Kowalski","Otwarte","13-01-25",null,null,null,null,"100 0 00 000USD","100 0 00 000USD","Od 1 do 3 miesięcy","Bardzo ograniczone","W ciągu miesiąca",null,null,null,"Centrum IT",null," HPLC Analysis Plus",null,null,null,"Łukasz Krzewicki","17-07-24","17-07-24",null,null,null,null,null,null,null,null,null,null,null,null,null,null,null,null,null,null,null,null,null,null,null,-26283,255,153,85,-8875,255,221,85]
[null,null,null,null,null,null,null,null,null,null,null,null,null,null,null,null,null,"CTR22","Oceń opcje odporności biznesowej i wybierz opłacalną i realną strategię, która zapewni ciągłość przedsiębiorstwa, odzyskiwanie danych po awarii i reakcję na incydenty w obliczu katastrofy lub innego poważnego incydentu lub zakłócenia. \nPrzygotować i wdrożyć Disaster Recovery Plan. ",null,"Lukasz Krzewicki","Zaakceptowany","Poziom serwisu",null,null,null,null,null,null,null,null,null,null,null,null,null,null,null,null,null,null,null,null,null,null,null,null,null,null,null,null,null,null,null,null,null,null,null,null,null,null,null,null,null,null,null,null,null,null,null,null,null,null,null,null,null,null,null,null,null,-26283,255,153,85,-8875,255,221,85]
[null,null,null,null,null,null,null,null,null,null,null,null,null,null,null,null,null,"CTR17","Wprowadzenie polityki bezpieczeństwa w zakresie dostarczania usług"," Zapobiegawczy","Anna Jablonska","Zaakceptowany","Poziom serwisu",null,null,null,null,null,null,null,null,null,null,null,null,null,null,null,null,null,null,null,null,null,null,null,null,null,null,null,null,null,null,null,null,null,null,null,null,null,null,null,null,null,null,null,null,null,null,null,null,null,null,null,null,null,null,null,null,null,-26283,255,153,85,-8875,255,221,85]
[null,"RIS32","Bezpieczeństwo nośników danych","Ryzyko wycieku danych wrażliwych w związku z niespełnieniem wymagania: \nDane wrażliwe (np. numery kart kredytowych, dane o stanie zdrowia, dane biometryczne) są przechowywane na nośnikach fizycznych tylko z użyciem silnych zabezpieczeń kryptograficznych. \n",null,"Technologiczne","Zarządzanie incydentami ","Średnie ryzyko","Zarządzalne",12,"Anna Jabłońska","Postępowanie z ryzykiem",null,"4 (Wysokie)","4 (Wysoki) 250 tys.-1 mln","16 (Pomarańczowy)",null,null,null,null,null,null,null,null,null,null,"2 (Niskie)","4 (Wysoki) 250 tys.-1 mln","30 0 00 000USD","8 (Żółty)",null,"STDACT00008","opis","Łukasz Kowalski","Draft","18-10-24",null,null,null,null,"70 0 00 000USD","7 0 00 000USD","W ciągu miesiąca","Średnie","Od 2 do 3 lat",null,null,null,"Departament Sprzedaży Detalicznej",null," CANTOR Accounting",null,null,null,"Anna Jabłońska","20-05-24","20-05-24",null,null,null,null,null,null,null,null,null,null,null,null,null,null,null,null,null,null,null,null,null,null,null,-26283,255,153,85,-8875,255,221,85]
[null,null,null,null,null,null,null,null,null,null,null,null,null,null,null,null,null,"CTR6","Szyfrowanie danych"," Zapobiegawczy",null,"Zaakceptowany","Poziom aplikacji",null,null,null,null,null,null,null,null,null,null,null,null,null,null,null,null,null,null,null,null,null,null,null,null,null,null,null,null,null,null,null,null,null,null,null,null,null,null,null,null,null,null,null,null,null,null,null,null,null,null,null,null,null,null,null,null,null,-26283,255,153,85,-8875,255,221,85]
[null,null,null,null,null,null,null,null,null,null,null,null,null,null,null,null,null,"CTR19","Anonimizacja danych przekazywanych do firm współpracujących"," Zapobiegawczy","Anna Jablonska","Zaakceptowany","Poziom aplikacji",null,null,null,null,null,null,null,null,null,null,null,null,null,null,null,null,null,null,null,null,null,null,null,null,null,null,null,null,null,null,null,null,null,null,null,null,null,null,null,null,null,null,null,null,null,null,null,null,null,null,null,null,null,null,null,null,null,-26283,255,153,85,-8875,255,221,85]
[null,"RIS38","Dostarczenie usługi niezgodnie z przyjętymi normami bezpieczeństwa","Dostarczenie usługi niezgodnie z przyjętymi normami bezpieczeństwa",null,"Technologiczne","Zarządzanie cyberbezpieczeństwem","Średnie ryzyko",null,13,"Anna Jabłońska","Postępowanie z ryzykiem",null,"2 (Niskie)","4 (Wysoki) 250 tys.-1 mln","8 (Żółty)",null,"CTR17","Wprowadzenie polityki bezpieczeństwa w zakresie dostarczania usług"," Zapobiegawczy","Anna Jablonska","Zaakceptowany","Poziom serwisu",null,null,null,null,null,null,null,null,null,null,null,null,null,null,null,null,null,"30 0 00 000USD","30 0 00 000USD",null,null,null,null,null,null,null,null,null,null,null,null,"Anna Jabłońska","30-06-22","30-06-22",null,null,null,null,null,null,null,null,null,null,null,null,null,null,null,null,null,null,null,null,null,null,null,-8875,255,221,85]
[null,"RIS30","Nieuprawniona modyfikacja ustawień systemu kontroli dostępu","Niezdefiniowany proces nadzoru oraz wyrywkowych kontroli wybranych zabezpieczeń fizycznych, procedur kontroli dostępu oraz parametrów technicznych systemów zasilania, klimatyzacji i ppoż.",null,"Technologiczne","Zarządzanie bezpieczeństwem fizycznym","Niskie ryzyko",null,14,"Jacek Kaczmarek","Postępowanie z ryzykiem",null,"3 (Średnie)","2 (Niski) 10-50 tys.","6 (Żółty)",null,null,null,null,null,null,null,null,null,null,"3 (Średnie)","2 (Niski) 10-50 tys.","2 5 00 000USD","6 (Żółty)",null,null,null,null,null,null,null,null,null,null,"2 5 00 000USD","2 5 00 000USD",null,null,null,null,null,null,"Centrum IT",null,null,null,null,null,"Anna Jabłońska","23-09-24","23-09-24",null,null,null,null,null,null,null,null,null,null,null,null,null,null,null,null,null,null,null,null,null,null,null,-8875,255,221,85,-8875,255,221,85]
[null,"RIS35","Nieuprawniony dostęp zdalny","W środowiskach pracy zdalnej zagrożenia ze strony wewnętrznych użytkowników mogą przyjmować różne formy, z każdą z nich związanym potencjałem na spowodowanie poważnych szkód. Naruszenia danych, polegające na uzyskiwaniu dostępu do wrażliwych informacji lub ich ujawnianiu, stanowią poważne ryzyko. Kradzież własności intelektualnej, rosnący problem, może prowadzić do utraty kluczowych aktywów biznesowych. Ponadto możliwość sabotażu, gdzie wewnętrzni użytkownicy celowo zakłócają systemy lub operacje, dodaje kolejny poziom skomplikowania tej sytuacji. \n",null,"Technologiczne","Zarządzanie cyberbezpieczeństwem",null,null,15,"Iga Lewandowska","Analiza ryzyka wbudowanego",null,"2 (Niskie)","3 (Średni) 50-250 tys.","6 (Żółty)",null,null,null,null,null,null,null,null,null,null,null,null,null,null,null,null,null,null,null,null,null,null,null,null,"7 5 00 000USD","7 5 00 000USD",null,null,null,null,null,null,"Centrum IT",null,null,null,null,null,"Anna Jabłońska","06-08-24","06-08-24",null,null,null,null,null,null,null,null,null,null,null,null,null,null,null,null,null,null,null,null,null,null,null,-8875,255,221,85]
[null,"RIS31","Wyciek danych osobowych spowodowany przez zewnętrznych dostawców","Wyciek danych osobowych związany ze współpracą z firmami zewnętrznymi. \nDziałania użytkowników, takich jak pracownik firmy zewnętrznej, mają większe znaczenie dla ezpieczeństwa danych, ponieważ możliwości do przypadkowego lub celowego naruszenia ochrony informacji jest znacznie więcej. Konieczne jest wdrożenie rozwiązań wzmacniających ochronę – gruntowna edukacja, monitoring serwera, weryfikacja wiarygodności firmy zewnętrznej oraz kontrola prac wykonywanych przez nią zdalnie.",null,"Regulacyjne","Obsługa kadrowo-płacowa","Średnie ryzyko","Częściowo zarządzalne",16,"Anna Jabłońska","Analiza ryzyka szczątkowego",null,"3 (Średnie)","4 (Wysoki) 250 tys.-1 mln","12 (Pomarańczowy)",null,null,null,null,null,null,null,null,null,null,"2 (Niskie)","3 (Średni) 50-250 tys.","7 5 00 000USD","6 (Żółty)",null,"STDACT00007","Przygotować procedurę dot. szyfrowania danych osobowych przekazywanych do podmiotów zewnętrznych","Łukasz Nowak","Otwarte","13-02-25",null,null,null,null,"50 0 00 000USD","25 0 00 000USD","W ciągu miesiąca","Eksperckie","W ciągu kilku dni",null,null,null,"Departament Zasobów Ludzkich",null,null,null,null,null,"Anna Jabłońska","24-06-24","24-06-24",null,null,null,null,null,null,null,null,null,null,null,null,null,null,null,null,null,null,null,null,null,null,null,-26283,255,153,85,-8875,255,221,85]
[null,null,null,null,null,null,null,null,null,null,null,null,null,null,null,null,null,"CTR18","Stosowanie rozwiązania klasy DLP (Data Loss Prevention)"," Zapobiegawczy","Anna Jablonska","Zaakceptowany","Poziom aplikacji",null,null,null,null,null,null,null,null,null,null,null,null,null,null,null,null,null,null,null,null,null,null,null,null,null,null,null,null,null,null,null,null,null,null,null,null,null,null,null,null,null,null,null,null,null,null,null,null,null,null,null,null,null,null,null,null,null,-26283,255,153,85,-8875,255,221,85]
[null,null,null,null,null,null,null,null,null,null,null,null,null,null,null,null,null,"CTR6","Szyfrowanie danych"," Zapobiegawczy",null,"Zaakceptowany","Poziom aplikacji",null,null,null,null,null,null,null,null,null,null,null,null,null,null,null,null,null,null,null,null,null,null,null,null,null,null,null,null,null,null,null,null,null,null,null,null,null,null,null,null,null,null,null,null,null,null,null,null,null,null,null,null,null,null,null,null,null,-26283,255,153,85,-8875,255,221,85]
[null,null,null,null,null,null,null,null,null,null,null,null,null,null,null,null,null,"CTR19","Anonimizacja danych przekazywanych do firm współpracujących"," Zapobiegawczy","Anna Jablonska","Zaakceptowany","Poziom aplikacji",null,null,null,null,null,null,null,null,null,null,null,null,null,null,null,null,null,null,null,null,null,null,null,null,null,null,null,null,null,null,null,null,null,null,null,null,null,null,null,null,null,null,null,null,null,null,null,null,null,null,null,null,null,null,null,null,null,-26283,255,153,85,-8875,255,221,85]
[null,"RIS39","Niekontrolowana zmiana danych","Niekontrolowana zmiana danych",null,"Technologiczne","Zarządzanie projektami","Niskie ryzyko",null,17,"Anna Jabłońska","Postępowanie z ryzykiem",null,"4 (Wysokie)","3 (Średni) 50-250 tys.","12 (Pomarańczowy)",null,null,null,null,null,null,null,null,null,null,"2 (Niskie)","3 (Średni) 50-250 tys.","7 5 00 000USD","6 (Żółty)",null,null,null,null,null,null,null,null,null,null,"17 5 00 000USD","17 5 00 000USD",null,null,null,null,null,null,"Departament Bezpieczeństwa",null,null,null,null,null,"Anna Jabłońska","24-06-24","24-06-24",null,null,null,null,null,null,null,null,null,null,null,null,null,null,null,null,null,null,null,null,null,null,null,-26283,255,153,85,-8875,255,221,85]
[null,"RIS29","Ryzyko braku możliwości realizacjia prawa wycofywania zgody u procesorów danych osobowych","Dostawca firmy świadczący usługi hostingowe nie ma spisanych prcedur wycofywania zgody na przetwarzanie danych osobowych. Istnieje b. duże ryzyko, że gdy sytuacja zaistnieje, 'niepisane procedury' nie zadziałają i klient, który jest klientem spółki wystąpi do nas z roszczeniami fnansowymi",null,"Regulacyjne","Zarządzanie bezpieczeństwem fizycznym",null,null,18,"Iga Lewandowska","Analiza ryzyka wbudowanego",null,"3 (Średnie)","2 (Niski) 10-50 tys.","6 (Żółty)",null,null,null,null,null,null,null,null,null,null,null,null,null,null,null,null,null,null,null,null,null,null,null,null,"2 5 00 000USD","2 5 00 000USD",null,null,null,null,null,null,"Pion Operacyjny",null,null,null,null,null,"Anna Jabłońska","15-05-24","15-05-24",null,null,null,null,null,null,null,null,null,null,null,null,null,null,null,null,null,null,null,null,null,null,null,-8875,255,221,85]
[null,"RIS46","Nowe ryzyko ABC","Nowe ryzyko ABC",null,"Operacyjne","Zarządzanie cyberbezpieczeństwem","Niskie ryzyko",null,19,"Filip Nowak","Analiza ryzyka szczątkowego",null,"3 (Średnie)","2 (Niski) 10-50 tys.","6 (Żółty)",null,null,null,null,null,null,null,null,null,null,"2 (Niskie)","2 (Niski) 10-50 tys.","1 5 00 000USD","4 (Zielony)",null,"STDACT00009","Wykonać ABC","Filip Nowak","Draft","31-12-24",null,null,null,null,"2 5 00 000USD","2 5 00 000USD",null,null,null,null,null,null,"Centrum IT",null,null,null,null,null,"Łukasz Krzewicki","17-07-24","17-07-24",null,null,null,null,null,null,null,null,null,null,null,null,null,null,null,null,null,null,null,null,null,null,null,-8875,255,221,85,-5579129,170,222,135]
[null,null,null,null,null,null,null,null,null,null,null,null,null,null,null,null,null,"CTR24","Zabezpieczenie dla ABC"," Korekcyjny, Zapobiegawczy","Filip Nowak","Wersja robocza","Poziom serwisu",null,null,null,null,null,null,null,null,null,null,null,null,null,null,null,null,null,null,null,null,null,null,null,null,null,null,null,null,null,null,null,null,null,null,null,null,null,null,null,null,null,null,null,null,null,null,null,null,null,null,null,null,null,null,null,null,null,-8875,255,221,85,-5579129,170,222,135]
[null,"RIS28","Utrata istotnych danych biznesowych","Utrata istotnych danych biznesowych spowodowana wyciekiem danych.",null,"Technologiczne","Zarządzanie bezpieczeństwem fizycznym","Niskie ryzyko","Problemy z zarządzaniem",20,"Zuzanna Nowak","Analiza ryzyka szczątkowego",null,"3 (Średnie)","5 (Bardzo wysoki) >1 mln","15 (Pomarańczowy)",null,null,null,null,null,null,null,null,null,null,"2 (Niskie)","2 (Niski) 10-50 tys.","1 5 00 000USD","4 (Zielony)",null,"STDACT00001","Wprowadzić w procedurze obowiązek szyfrowania na nośnikach danych","Łukasz Kowalski","Otwarte","26-09-24",null,null,null,null,"100 0 00 000USD","100 0 00 000USD","Od 1 do 3 miesięcy","Bardzo ograniczone","W ciągu kilku dni",null,null,"Nieznany","Centrum IT",null," REMUS CRM System",null,null,null,"Anna Jabłońska","21-06-24","21-06-24",null,null,null,null,null,null,null,null,null,null,null,null,null,null,null,null,null,null,null,null,null,null,null,-26283,255,153,85,-5579129,170,222,135]
[null,null,null,null,null,null,null,null,null,null,null,null,null,null,null,null,null,"CTR18","Stosowanie rozwiązania klasy DLP (Data Loss Prevention)"," Zapobiegawczy","Anna Jablonska","Zaakceptowany","Poziom aplikacji",null,null,null,null,null,null,null,null,null,null,null,null,null,null,null,null,null,null,null,null,null,null,null,null,null,null,null,null,null,null,null,null,null,null,null,null,null,null,null,null,null,null,null,null,null,null,null,null,null,null,null,null,null,null,null,null,null,-26283,255,153,85,-5579129,170,222,135]
[null,null,null,null,null,null,null,null,null,null,null,null,null,null,null,null,null,"CTR14","Aktualizacje bezpieczeństwa firewalli i routerow brzegowych"," Zapobiegawczy",null,"Zaakceptowany","Poziom infrastruktury",null,null,null,null,null,null,null,null,null,null,null,null,null,null,null,null,null,null,null,null,null,null,null,null,null,null,null,null,null,null,null,null,null,null,null,null,null,null,null,null,null,null,null,null,null,null,null,null,null,null,null,null,null,null,null,null,null,-26283,255,153,85,-5579129,170,222,135]
[null,null,null,null,null,null,null,null,null,null,null,null,null,null,null,null,null,"CTR6","Szyfrowanie danych"," Zapobiegawczy",null,"Zaakceptowany","Poziom aplikacji",null,null,null,null,null,null,null,null,null,null,null,null,null,null,null,null,null,null,null,null,null,null,null,null,null,null,null,null,null,null,null,null,null,null,null,null,null,null,null,null,null,null,null,null,null,null,null,null,null,null,null,null,null,null,null,null,null,-26283,255,153,85,-5579129,170,222,135]
[null,null,null,null,null,null,null,null,null,null,null,null,null,null,null,null,null,"CTR19","Anonimizacja danych przekazywanych do firm współpracujących"," Zapobiegawczy","Anna Jablonska","Zaakceptowany","Poziom aplikacji",null,null,null,null,null,null,null,null,null,null,null,null,null,null,null,null,null,null,null,null,null,null,null,null,null,null,null,null,null,null,null,null,null,null,null,null,null,null,null,null,null,null,null,null,null,null,null,null,null,null,null,null,null,null,null,null,null,-26283,255,153,85,-5579129,170,222,135]
[null,"RIS44","Ryzyko wycieku wartości na skutek błędów w zarządzaniu kontraktem.","Złe zarządzanie umowami prowadzi do niewystarczającego monitorowania wyników zobowiązań umownych, przepłacania rachunków, straconych okazji negocjacyjnych podczas przedłużania umów i wielu innych problemów.",null,"Finansowe","Zarządzanie umowami","Niskie ryzyko",null,21,"Iga Lewandowska","Monitorowanie",null,"2 (Niskie)","2 (Niski) 10-50 tys.","4 (Zielony)",null,null,null,null,null,null,null,null,null,null,"2 (Niskie)","2 (Niski) 10-50 tys.","1 5 00 000USD","4 (Zielony)",null,null,null,null,null,null,null,null,null,null,"1 5 00 000USD","1 5 00 000USD",null,null,null,null,null,null,"Departament Zakupów",null,null,null,null,null,"Łukasz Krzewicki","18-06-24","18-06-24",null,null,null,null,null,null,null,null,null,null,null,null,null,null,null,null,null,null,null,null,null,null,null,-5579129,170,222,135,-5579129,170,222,135]
[null,"RIS48","Ograniczenia w dostępie do wody z rzek i wód gruntowych","Potencjalne ograniczenia w dostępie do wody z rzek i wód gruntowych, w połączeniu ze zwiększonym zapotrzebowaniem na wodę.",null,"Technologiczne","Zarządzanie ryzykiem rynkowym ",null,null,22,"Anna Jabłońska","Analiza ryzyka wbudowanego",null,"1 (Bardzo Niskie)","1 (Bardzo niski) < 10 tys.","1 (Niebieski)",null,null,null,null,null,null,null,null,null,null,null,null,null,null,null,null,null,null,null,null,null,null,null,null,"1 00 000USD","1 00 000USD",null,null,null,null,null,null,"Departament Zakupów",null,null,null,null,null,"Łukasz Krzewicki","25-09-24","25-09-24",null,null,null,null,null,null,null,null,null,null,null,null,null,null,null,null,null,null,null,null,null,null,null,-7872819,135,222,205]

{"sheet":"zarządzanie ryzykiem - szablon","index":2,"n_rows":61,"n_cols":88,"rows_kept":61,"cut":false,"hidden":false,"merged":[[2,1,6,3],[7,40,8,40],[6,38,7,38],[6,40,6,56],[6,5,6,11],[6,13,7,15],[6,17,6,24],[6,26,7,29],[6,31,6,36]]}
[]
[]
[null,{"$error":"#VALUE!"}]
[]
[]
[]
[null,null,null,null,null,"Podstawowe informacje",null,null,null,null,null,null,null,"Ryzyko wbudowane (brutto)",null,null,null,"Mechanizmy kontrolne",null,null,null,null,null,null,null,null,"Ryzyko szczątkowe",null,null,null,null,"Działania ",null,null,null,null,null,null,"Ryzyko docelowe",null,"Dodatkowe informacje (do wykorzystania w Zarządzaniu Ryzykiem)"]
[null,null,null,null,null,null,null,null,null,null,null,null,null,null,null,null,null,null,null,null,null,null,null,null,null,null,null,null,null,null,null,null,null,null,null,null,null,null,null,null,"Dostosowany wpływ (dla wartości ryzyka wbudowanego)"]
[null,"ID","Tytuł","Opis",null,"Typ ryzyka","Proces","Apetyt na ryzyko","Łatwość zarządzania","Pozycja","Właściciel ryzyka","Status ryzyka",null,"Prawdopodobieństwo","Wpływ","Poziom ryzyka",null,"ID","Opis","Typ","Właściciel","Status","Wynik","Data docelowa","Data zamknięcia",null,"Prawdopodobieństwo","Wpływ","Dostosowany wpływ","Poziom ryzyka",null,"ID","Opis","Właściciel","Status","Data docelowa","Data zamknięcia",null,"Poziom ryzyka",null,null,"Ocena ryzyka (dla wartości ryzyka wbudowanego)","Szacunkowy czas rozwiązania","Poziom zrozumienia","Bliskość ryzyka","Obszar POTI","Regulacje","Domena ryzyka","Jednostka organizacyjna","Geograficzne obszary wpływu","Powiązane aplikacje","Powiązane wdrożenia","Powiązani dostawcy","Powiązane kategorie","Utworzone przez","Utworzono","Ostanio modyfikowany"]
[null,null,null,null,null,null,null,null,null,null,null,null,null,null,null,{"$f":"(N10*O10)","v":0},null,null,null,null,null,null,null,null,null,null,4,2,null,{"$f":"(AA10*AB10)","v":8},null,null,null,null,null,null,null,null,null,null,null,null,null,null,null,null,null,null,null,null,null,null,null,null,null,null,null,null,null,null,null,null,null,null,null,null,null,null,null,null,null,null,null,null,null,null,null,null,null,null,-2924705,211,95,95]
[null,null,null,null,null,null,null,null,null,null,null,null,null,5,5,25,null,null,null,null,null,null,null,null,null,null,5,5,null,{"$f":"(AA11*AB11)","v":25},null,null,null,null,null,null,null,null,null,null,null,null,null,null,null,null,null,null,null,null,null,null,null,null,null,null,null,null,null,null,null,null,null,null,null,null,null,null,null,null,null,null,null,null,null,null,null,null,null,null,-2924705,211,95,95]
[null,null,null,null,null,null,null,null,null,null,null,null,null,4,4,16,null,null,null,null,null,null,null,null,null,null,null,null,null,{"$f":"(AA12*AB12)","v":0},null,null,null,null,null,null,null,null,null,null,null,null,null,null,null,null,null,null,null,null,null,null,null,null,null,null,null,null,null,null,null,null,null,null,null,null,null,null,null,null,null,null,null,null,null,null,null,null,null,null,-2924705,211,95,95]
[null,null,null,null,null,null,null,null,null,null,null,null,null,null,null,0,null,null,null,null,null,null,null,null,null,null,null,null,null,0,null,null,null,null,null,null,null,null,null,null,null,null,null,null,null,null,null,null,null,null,null,null,null,null,null,null,null,null,null,null,null,null,null,null,null,null,null,null,null,5,null,null,5,null,null,null,null,null,null,null,-26283,255,153,85]
[null,null,null,null,null,null,null,null,null,null,null,null,null,2,3,6,null,null,null,null,null,null,null,null,null,null,null,null,null,0,null,null,null,null,null,null,null,null,null,null,null,null,null,null,null,null,null,null,null,null,null,null,null,null,null,null,null,null,null,null,null,null,null,null,null,null,null,null,null,4,null,null,4,null,null,null,null,null,null,null,-26283,255,153,85]
[null,null,null,null,null,null,null,null,null,null,null,null,null,null,null,0,null,null,null,null,null,null,null,null,null,null,null,null,null,0,null,null,null,null,null,null,null,null,null,null,null,null,null,null,null,null,null,null,null,null,null,null,null,null,null,null,null,null,null,null,null,null,null,null,null,null,null,null,null,3,null,null,3,null,null,null,null,null,null,null,-26283,255,153,85,-26283,255,153,85]
[null,null,null,null,null,null,null,null,null,null,null,null,null,1,2,2,null,null,null,null,null,null,null,null,null,null,null,null,null,0,null,null,null,null,null,null,null,null,null,null,null,null,null,null,null,null,null,null,null,null,null,null,null,null,null,null,null,null,null,null,null,null,null,null,null,null,null,null,null,2,null,null,2,null,null,null,null,null,null,null,-26283,255,153,85,-26283,255,153,85]
[null,null,null,null,null,null,null,null,null,null,null,null,null,1,1,1,null,null,null,null,null,null,null,null,null,null,null,null,null,0,null,null,null,null,null,null,null,null,null,null,null,null,null,null,null,null,null,null,null,null,null,null,null,null,null,null,null,null,null,null,null,null,null,null,null,null,null,null,null,1,null,null,1,null,null,null,null,null,null,null,-26283,255,153,85,-26283,255,153,85]
[null,null,null,null,null,null,null,null,null,null,null,null,null,null,null,0,null,null,null,null,null,null,null,null,null,null,null,null,null,0,null,null,null,null,null,null,null,null,null,null,null,null,null,null,null,null,null,null,null,null,null,null,null,null,null,null,null,null,null,null,null,null,null,null,null,null,null,null,null,null,null,null,null,null,null,null,null,null,null,null,-26283,255,153,85,-26283,255,153,85]
[null,null,null,null,null,null,null,null,null,null,null,null,null,null,null,0,null,null,null,null,null,null,null,null,null,null,null,null,null,0,null,null,null,null,null,null,null,null,null,null,null,null,null,null,null,null,null,null,null,null,null,null,null,null,null,null,null,null,null,null,null,null,null,null,null,null,null,null,null,null,null,null,null,null,null,null,null,null,null,null,-26283,255,153,85]
[null,null,null,null,null,null,null,null,null,null,null,null,null,null,null,0,null,null,null,null,null,null,null,null,null,null,null,null,null,0,null,null,null,null,null,null,null,null,null,null,null,null,null,null,null,null,null,null,null,null,null,null,null,null,null,null,null,null,null,null,null,null,null,null,null,null,null,null,null,null,null,null,null,null,null,null,null,null,null,null,-26283,255,153,85]
[null,null,null,null,null,null,null,null,null,null,null,null,null,null,null,0,null,null,null,null,null,null,null,null,null,null,null,null,null,0,null,null,null,null,null,null,null,null,null,null,null,null,null,null,null,null,null,null,null,null,null,null,null,null,null,null,null,null,null,null,null,null,null,null,null,null,null,null,null,null,null,null,null,null,null,null,null,null,null,null,-26283,255,153,85]
[null,null,null,null,null,null,null,null,null,null,null,null,null,null,null,0,null,null,null,null,null,null,null,null,null,null,null,null,null,0,null,null,null,null,null,null,null,null,null,null,null,null,null,null,null,null,null,null,null,null,null,null,null,null,null,null,null,null,null,null,null,null,null,null,null,null,null,null,null,null,null,null,null,null,null,null,null,null,null,null,-26283,255,153,85]
[null,null,null,null,null,null,null,null,null,null,null,null,null,null,null,0,null,null,null,null,null,null,null,null,null,null,null,null,null,0,null,null,null,null,null,null,null,null,null,null,null,null,null,null,null,null,null,null,null,null,null,null,null,null,null,null,null,null,null,null,null,null,null,null,null,null,null,null,null,null,null,null,null,null,null,null,null,null,null,null,-26283,255,153,85]
[null,null,null,null,null,null,null,null,null,null,null,null,null,null,null,0,null,null,null,null,null,null,null,null,null,null,null,null,null,0,null,null,null,null,null,null,null,null,null,null,null,null,null,null,null,null,null,null,null,null,null,null,null,null,null,null,null,null,null,null,null,null,null,null,null,null,null,null,null,null,null,null,null,null,null,null,null,null,null,null,-26283,255,153,85]
[null,null,null,null,null,null,null,null,null,null,null,null,null,null,null,0,null,null,null,null,null,null,null,null,null,null,null,null,null,0,null,null,null,null,null,null,null,null,null,null,null,null,null,null,null,null,null,null,null,null,null,null,null,null,null,null,null,null,null,null,null,null,null,null,null,null,null,null,null,null,null,null,null,null,null,null,null,null,null,null,-26283,255,153,85]
[null,null,null,null,null,null,null,null,null,null,null,null,null,null,null,0,null,null,null,null,null,null,null,null,null,null,null,null,null,0,null,null,null,null,null,null,null,null,null,null,null,null,null,null,null,null,null,null,null,null,null,null,null,null,null,null,null,null,null,null,null,null,null,null,null,null,null,null,null,null,null,null,null,null,null,null,null,null,null,null,-26283,255,153,85]
[null,null,null,null,null,null,null,null,null,null,null,null,null,null,null,0,null,null,null,null,null,null,null,null,null,null,null,null,null,0,null,null,null,null,null,null,null,null,null,null,null,null,null,null,null,null,null,null,null,null,null,null,null,null,null,null,null,null,null,null,null,null,null,null,null,null,null,null,null,null,null,null,null,null,null,null,null,null,null,null,-8875,255,221,85]
[null,null,null,null,null,null,null,null,null,null,null,null,null,null,null,0,null,null,null,null,null,null,null,null,null,null,null,null,null,0,null,null,null,null,null,null,null,null,null,null,null,null,null,null,null,null,null,null,null,null,null,null,null,null,null,null,null,null,null,null,null,null,null,null,null,null,null,null,null,null,null,null,null,null,null,null,null,null,null,null,-26283,255,153,85,-8875,255,221,85]
[null,null,null,null,null,null,null,null,null,null,null,null,null,null,null,0,null,null,null,null,null,null,null,null,null,null,null,null,null,0,null,null,null,null,null,null,null,null,null,null,null,null,null,null,null,null,null,null,null,null,null,null,null,null,null,null,null,null,null,null,null,null,null,null,null,null,null,null,null,null,null,null,null,null,null,null,null,null,null,null,-26283,255,153,85,-8875,255,221,85]
[null,null,null,null,null,null,null,null,null,null,null,null,null,null,null,0,null,null,null,null,null,null,null,null,null,null,null,null,null,0,null,null,null,null,null,null,null,null,null,null,null,null,null,null,null,null,null,null,null,null,null,null,null,null,null,null,null,null,null,null,null,null,null,null,null,null,null,null,null,null,null,null,null,null,null,null,null,null,null,null,-26283,255,153,85,-8875,255,221,85]
[null,null,null,null,null,null,null,null,null,null,null,null,null,null,null,0,null,null,null,null,null,null,null,null,null,null,null,null,null,0,null,null,null,null,null,null,null,null,null,null,null,null,null,null,null,null,null,null,null,null,null,null,null,null,null,null,null,null,null,null,null,null,null,null,null,null,null,null,null,null,null,null,null,null,null,null,null,null,null,null,-26283,255,153,85,-8875,255,221,85]
[null,null,null,null,null,null,null,null,null,null,null,null,null,null,null,0,null,null,null,null,null,null,null,null,null,null,null,null,null,0,null,null,null,null,null,null,null,null,null,null,null,null,null,null,null,null,null,null,null,null,null,null,null,null,null,null,null,null,null,null,null,null,null,null,null,null,null,null,null,null,null,null,null,null,null,null,null,null,null,null,-26283,255,153,85,-8875,255,221,85]
[null,null,null,null,null,null,null,null,null,null,null,null,null,null,null,0,null,null,null,null,null,null,null,null,null,null,null,null,null,0,null,null,null,null,null,null,null,null,null,null,null,null,null,null,null,null,null,null,null,null,null,null,null,null,null,null,null,null,null,null,null,null,null,null,null,null,null,null,null,null,null,null,null,null,null,null,null,null,null,null,-26283,255,153,85,-8875,255,221,85]
[null,null,null,null,null,null,null,null,null,null,null,null,null,null,null,0,null,null,null,null,null,null,null,null,null,null,null,null,null,0,null,null,null,null,null,null,null,null,null,null,null,null,null,null,null,null,null,null,null,null,null,null,null,null,null,null,null,null,null,null,null,null,null,null,null,null,null,null,null,null,null,null,null,null,null,null,null,null,null,null,-8875,255,221,85]
[null,null,null,null,null,null,null,null,null,null,null,null,null,null,null,0,null,null,null,null,null,null,null,null,null,null,null,null,null,0,null,null,null,null,null,null,null,null,null,null,null,null,null,null,null,null,null,null,null,null,null,null,null,null,null,null,null,null,null,null,null,null,null,null,null,null,null,null,null,null,null,null,null,null,null,null,null,null,null,null,-8875,255,221,85,-8875,255,221,85]
[null,null,null,null,null,null,null,null,null,null,null,null,null,null,null,0,null,null,null,null,null,null,null,null,null,null,null,null,null,0,null,null,null,null,null,null,null,null,null,null,null,null,null,null,null,null,null,null,null,null,null,null,null,null,null,null,null,null,null,null,null,null,null,null,null,null,null,null,null,null,null,null,null,null,null,null,null,null,null,null,-8875,255,221,85]
[null,null,null,null,null,null,null,null,null,null,null,null,null,null,null,0,null,null,null,null,null,null,null,null,null,null,null,null,null,0,null,null,null,null,null,null,null,null,null,null,null,null,null,null,null,null,null,null,null,null,null,null,null,null,null,null,null,null,null,null,null,null,null,null,null,null,null,null,null,null,null,null,null,null,null,null,null,null,null,null,-26283,255,153,85,-8875,255,221,85]
[null,null,null,null,null,null,null,null,null,null,null,null,null,null,null,0,null,null,null,null,null,null,null,null,null,null,null,null,null,0,null,null,null,null,null,null,null,null,null,null,null,null,null,null,null,null,null,null,null,null,null,null,null,null,null,null,null,null,null,null,null,null,null,null,null,null,null,null,null,null,null,null,null,null,null,null,null,null,null,null,-26283,255,153,85,-8875,255,221,85]
[null,null,null,null,null,null,null,null,null,null,null,null,null,null,null,0,null,null,null,null,null,null,null,null,null,null,null,null,null,0,null,null,null,null,null,null,null,null,null,null,null,null,null,null,null,null,null,null,null,null,null,null,null,null,null,null,null,null,null,null,null,null,null,null,null,null,null,null,null,null,null,null,null,null,null,null,null,null,null,null,-26283,255,153,85,-8875,255,221,85]
[null,null,null,null,null,null,null,null,null,null,null,null,null,null,null,0,null,null,null,null,null,null,null,null,null,null,null,null,null,0,null,null,null,null,null,null,null,null,null,null,null,null,null,null,null,null,null,null,null,null,null,null,null,null,null,null,null,null,null,null,null,null,null,null,null,null,null,null,null,null,null,null,null,null,null,null,null,null,null,null,-26283,255,153,85,-8875,255,221,85]
[null,null,null,null,null,null,null,null,null,null,null,null,null,null,null,0,null,null,null,null,null,null,null,null,null,null,null,null,null,0,null,null,null,null,null,null,null,null,null,null,null,null,null,null,null,null,null,null,null,null,null,null,null,null,null,null,null,null,null,null,null,null,null,null,null,null,null,null,null,null,null,null,null,null,null,null,null,null,null,null,-26283,255,153,85,-8875,255,221,85]
[null,null,null,null,null,null,null,null,null,null,null,null,null,null,null,0,null,null,null,null,null,null,null,null,null,null,null,null,null,0,null,null,null,null,null,null,null,null,null,null,null,null,null,null,null,null,null,null,null,null,null,null,null,null,null,null,null,null,null,null,null,null,null,null,null,null,null,null,null,null,null,null,null,null,null,null,null,null,null,null,-8875,255,221,85]
[null,null,null,null,null,null,null,null,null,null,null,null,null,null,null,0,null,null,null,null,null,null,null,null,null,null,null,null,null,0,null,null,null,null,null,null,null,null,null,null,null,null,null,null,null,null,null,null,null,null,null,null,null,null,null,null,null,null,null,null,null,null,null,null,null,null,null,null,null,null,null,null,null,null,null,null,null,null,null,null,-8875,255,221,85,-5579129,170,222,135]
[null,null,null,null,null,null,null,null,null,null,null,null,null,null,null,0,null,null,null,null,null,null,null,null,null,null,null,null,null,0,null,null,null,null,null,null,null,null,null,null,null,null,null,null,null,null,null,null,null,null,null,null,null,null,null,null,null,null,null,null,null,null,null,null,null,null,null,null,null,null,null,null,null,null,null,null,null,null,null,null,-8875,255,221,85,-5579129,170,222,135]
[null,null,null,null,null,null,null,null,null,null,null,null,null,null,null,0,null,null,null,null,null,null,null,null,null,null,null,null,null,0,null,null,null,null,null,null,null,null,null,null,null,null,null,null,null,null,null,null,null,null,null,null,null,null,null,null,null,null,null,null,null,null,null,null,null,null,null,null,null,null,null,null,null,null,null,null,null,null,null,null,-26283,255,153,85,-5579129,170,222,135]
[null,null,null,null,null,null,null,null,null,null,null,null,null,null,null,0,null,null,null,null,null,null,null,null,null,null,null,null,null,0,null,null,null,null,null,null,null,null,null,null,null,null,null,null,null,null,null,null,null,null,null,null,null,null,null,null,null,null,null,null,null,null,null,null,null,null,null,null,null,null,null,null,null,null,null,null,null,null,null,null,-26283,255,153,85,-5579129,170,222,135]
[null,null,null,null,null,null,null,null,null,null,null,null,null,null,null,0,null,null,null,null,null,null,null,null,null,null,null,null,null,0,null,null,null,null,null,null,null,null,null,null,null,null,null,null,null,null,null,null,null,null,null,null,null,null,null,null,null,null,null,null,null,null,null,null,null,null,null,null,null,null,null,null,null,null,null,null,null,null,null,null,-26283,255,153,85,-5579129,170,222,135]
[null,null,null,null,null,null,null,null,null,null,null,null,null,null,null,0,null,null,null,null,null,null,null,null,null,null,null,null,null,0,null,null,null,null,null,null,null,null,null,null,null,null,null,null,null,null,null,null,null,null,null,null,null,null,null,null,null,null,null,null,null,null,null,null,null,null,null,null,null,null,null,null,null,null,null,null,null,null,null,null,-26283,255,153,85,-5579129,170,222,135]
[null,null,null,null,null,null,null,null,null,null,null,null,null,null,null,0,null,null,null,null,null,null,null,null,null,null,null,null,null,0,null,null,null,null,null,null,null,null,null,null,null,null,null,null,null,null,null,null,null,null,null,null,null,null,null,null,null,null,null,null,null,null,null,null,null,null,null,null,null,null,null,null,null,null,null,null,null,null,null,null,-26283,255,153,85,-5579129,170,222,135]
[null,null,null,null,null,null,null,null,null,null,null,null,null,null,null,0,null,null,null,null,null,null,null,null,null,null,null,null,null,0,null,null,null,null,null,null,null,null,null,null,null,null,null,null,null,null,null,null,null,null,null,null,null,null,null,null,null,null,null,null,null,null,null,null,null,null,null,null,null,null,null,null,null,null,null,null,null,null,null,null,-5579129,170,222,135,-5579129,170,222,135]
[null,null,null,null,null,null,null,null,null,null,null,null,null,null,null,0,null,null,null,null,null,null,null,null,null,null,null,null,null,0,null,null,null,null,null,null,null,null,null,null,null,null,null,null,null,null,null,null,null,null,null,null,null,null,null,null,null,null,null,null,null,null,null,null,null,null,null,null,null,null,null,null,null,null,null,null,null,null,null,null,-7872819,135,222,205]
[null,null,null,null,null,null,null,null,null,null,null,null,null,null,null,0,null,null,null,null,null,null,null,null,null,null,null,null,null,0]
[null,null,null,null,null,null,null,null,null,null,null,null,null,null,null,0,null,null,null,null,null,null,null,null,null,null,null,null,null,0]
[null,null,null,null,null,null,null,null,null,null,null,null,null,null,null,0,null,null,null,null,null,null,null,null,null,null,null,null,null,0]
[null,null,null,null,null,null,null,null,null,null,null,null,null,null,null,0,null,null,null,null,null,null,null,null,null,null,null,null,null,0]
[null,null,null,null,null,null,null,null,null,null,null,null,null,null,null,0,null,null,null,null,null,null,null,null,null,null,null,null,null,0]
[null,null,null,null,null,null,null,null,null,null,null,null,null,null,null,0,null,null,null,null,null,null,null,null,null,null,null,null,null,0]
[null,null,null,null,null,null,null,null,null,null,null,null,null,null,null,0,null,null,null,null,null,null,null,null,null,null,null,null,null,0]
[null,null,null,null,null,null,null,null,null,null,null,null,null,null,null,0,null,null,null,null,null,null,null,null,null,null,null,null,null,0]
[null,null,null,null,null,null,null,null,null,null,null,null,null,null,null,0,null,null,null,null,null,null,null,null,null,null,null,null,null,0]
[null,null,null,null,null,null,null,null,null,null,null,null,null,null,null,0]

{"sheet":"<#Config>","index":3,"n_rows":0,"n_cols":0,"rows_kept":0,"cut":false,"hidden":true,"merged":[]}